[Event "*** Titled Tuesday 3|2 Blitz"]
[Site "Chess.com"]
[Date "2016.02.02"]
[Round "6"]
[White "Assasin14"]
[Black "ethylalcohol"]
[Result "1-0"]
[WhiteElo "2016"]
[BlackElo "1727"]
[TimeControl "180+2"]
[EndTime "18:15:26 PST"]
[Termination "Assasin14 won on time"]

1. e4 {[%clk 0:03:01.9]} 1... e5 {[%clk 0:03:00.2]} 2. Nf3 {[%clk 0:03:03]} 2...
Nc6 {[%clk 0:03:01.2]} 3. Bb5 {[%clk 0:03:02.6]} 3... Nf6 {[%clk 0:03:01.7]} 4.
Qe2 {[%clk 0:02:57.9]} 4... d6 {[%clk 0:02:52.2]} 5. c3 {[%clk 0:02:51.1]} 5...
Bd7 {[%clk 0:02:48.8]} 6. O-O {[%clk 0:02:46.7]} 6... Be7 {[%clk 0:02:48.9]} 7.
d4 {[%clk 0:02:44.1]} 7... O-O {[%clk 0:02:46.4]} 8. Nbd2 {[%clk 0:02:29.4]}
8... exd4 {[%clk 0:01:47.3]} 9. cxd4 {[%clk 0:02:28.5]} 9... Re8 {[%clk
0:01:47.1]} 10. a3 {[%clk 0:02:01.5]} 10... a6 {[%clk 0:01:42.8]} 11. Bc4 {[%clk
0:01:54.2]} 11... Bg4 {[%clk 0:01:43.5]} 12. Qd3 {[%clk 0:01:37.2]} 12... h6
{[%clk 0:01:21.1]} 13. Qb3 {[%clk 0:01:25.4]} 13... Na5 {[%clk 0:01:09.4]} 14.
Bxf7+ {[%clk 0:01:25.2]} 14... Kf8 {[%clk 0:01:09.5]} 15. Qa2 {[%clk 0:01:22.5]}
15... Qd7 {[%clk 0:00:57]} 16. e5 {[%clk 0:01:02.1]} 16... Nh5 {[%clk
0:00:42.1]} 17. e6 {[%clk 0:00:44]} 17... Qb5 {[%clk 0:00:39]} 18. Bxe8 {[%clk
0:00:23.3]} 18... Rxe8 {[%clk 0:00:40.9]} 19. d5 {[%clk 0:00:24.3]} 19... Nf4
{[%clk 0:00:30.1]} 20. b4 {[%clk 0:00:23.5]} 20... Bxf3 {[%clk 0:00:20.7]} 21.
Nxf3 {[%clk 0:00:21.5]} 21... Ne2+ {[%clk 0:00:21.7]} 22. Kh1 {[%clk 0:00:17.8]}
22... Nc3 {[%clk 0:00:22.2]} 23. Re1 {[%clk 0:00:13.7]} 23... Nxa2 {[%clk
0:00:22.9]} 24. bxa5 {[%clk 0:00:14.8]} 24... Qxa5 {[%clk 0:00:20.7]} 25. Rxa2
{[%clk 0:00:14.6]} 25... c6 {[%clk 0:00:19.2]} 26. Bd2 {[%clk 0:00:15.9]} 26...
Qxd5 {[%clk 0:00:19]} 27. Rb2 {[%clk 0:00:15.9]} 27... b5 {[%clk 0:00:18.7]} 28.
Nh4 {[%clk 0:00:13.7]} 28... Bxh4 {[%clk 0:00:18.9]} 29. Ba5 {[%clk 0:00:13.4]}
29... Bf6 {[%clk 0:00:18.9]} 30. Rbe2 {[%clk 0:00:14.1]} 30... c5 {[%clk
0:00:17.6]} 31. Bd2 {[%clk 0:00:13.4]} 31... c4 {[%clk 0:00:17.7]} 32. Bc1
{[%clk 0:00:13.6]} 32... a5 {[%clk 0:00:17.6]} 33. Bd2 {[%clk 0:00:14.1]} 33...
b4 {[%clk 0:00:16.4]} 34. axb4 {[%clk 0:00:14.7]} 34... axb4 {[%clk 0:00:17.4]}
35. Bxb4 {[%clk 0:00:15.7]} 35... Be5 {[%clk 0:00:18.5]} 36. f4 {[%clk
0:00:14.5]} 36... Bxf4 {[%clk 0:00:17.6]} 37. Rf1 {[%clk 0:00:13.8]} 37... g5
{[%clk 0:00:17.9]} 38. Rd2 {[%clk 0:00:13.9]} 38... Qe5 {[%clk 0:00:16.7]} 39.
g3 {[%clk 0:00:14.5]} 39... Qe4+ {[%clk 0:00:16.8]} 40. Rg2 {[%clk 0:00:14]}
40... Kg7 {[%clk 0:00:16.3]} 41. gxf4 {[%clk 0:00:15.3]} 41... Kf6 {[%clk
0:00:16.3]} 42. fxg5+ {[%clk 0:00:16.5]} 42... Kxe6 {[%clk 0:00:16.7]} 43. Re1
{[%clk 0:00:17.9]} 43... Qxe1+ {[%clk 0:00:17.8]} 44. Bxe1 {[%clk 0:00:19.8]}
44... Kd5 {[%clk 0:00:18.8]} 45. Bc3 {[%clk 0:00:20.4]} 45... hxg5 {[%clk
0:00:18.9]} 46. Rxg5+ {[%clk 0:00:21.7]} 46... Kc6 {[%clk 0:00:17.1]} 47. Rg4
{[%clk 0:00:21.6]} 47... d5 {[%clk 0:00:17.4]} 48. h4 {[%clk 0:00:21.9]} 48...
Re3 {[%clk 0:00:17.9]} 49. Bd4 {[%clk 0:00:23]} 49... Rd3 {[%clk 0:00:19]} 50.
h5 {[%clk 0:00:23.4]} 50... Rh3+ {[%clk 0:00:19.4]} 51. Kg2 {[%clk 0:00:24]}
51... Rxh5 {[%clk 0:00:20.3]} 52. Rg6+ {[%clk 0:00:25.7]} 52... Kb5 {[%clk
0:00:19.3]} 53. Rb6+ {[%clk 0:00:25.2]} 53... Ka5 {[%clk 0:00:19.5]} 54. Rd6
{[%clk 0:00:22.9]} 54... Ka4 {[%clk 0:00:16.8]} 55. Kf3 {[%clk 0:00:23.1]} 55...
Kb3 {[%clk 0:00:17.5]} 56. Kg4 {[%clk 0:00:24.1]} 56... Rh1 {[%clk 0:00:16.6]}
57. Rxd5 {[%clk 0:00:25.1]} 57... Rd1 {[%clk 0:00:16.8]} 58. Rb5+ {[%clk
0:00:24.1]} 58... Ka4 {[%clk 0:00:16.7]} 59. Rd5 {[%clk 0:00:23]} 59... c3
{[%clk 0:00:17.3]} 60. Rd8 {[%clk 0:00:21.8]} 60... c2 {[%clk 0:00:17.4]} 61.
Ra8+ {[%clk 0:00:23]} 61... Kb4 {[%clk 0:00:16.6]} 62. Rb8+ {[%clk 0:00:24.3]}
62... Kc4 {[%clk 0:00:16.5]} 63. Be3 {[%clk 0:00:24.4]} 63... Kd3 {[%clk
0:00:16.7]} 64. Bh6 {[%clk 0:00:23.8]} 64... Rg1+ {[%clk 0:00:15.3]} 65. Kf3
{[%clk 0:00:24.3]} 65... Rf1+ {[%clk 0:00:13.4]} 66. Kg2 {[%clk 0:00:25.4]}
66... Rd1 {[%clk 0:00:13.6]} 67. Rd8+ {[%clk 0:00:25.6]} 67... Ke2 {[%clk
0:00:14.2]} 68. Re8+ {[%clk 0:00:26.6]} 68... Kd3 {[%clk 0:00:14.8]} 69. Rd8+
{[%clk 0:00:28.2]} 69... Ke2 {[%clk 0:00:15.5]} 70. Re8+ {[%clk 0:00:29]} 70...
Kd3 {[%clk 0:00:16.7]} 71. Rc8 {[%clk 0:00:30.9]} 71... Ke2 {[%clk 0:00:17.8]}
72. Rxc2+ {[%clk 0:00:31.4]} 72... Kd3 {[%clk 0:00:18.7]} 73. Rf2 {[%clk
0:00:33.1]} 73... Ke4 {[%clk 0:00:18.2]} 74. Rf3 {[%clk 0:00:35]} 74... Rb1
{[%clk 0:00:18.2]} 75. Re3+ {[%clk 0:00:35.9]} 75... Kd4 {[%clk 0:00:18.6]} 76.
Re2 {[%clk 0:00:37.6]} 76... Rb3 {[%clk 0:00:18.7]} 77. Rd2+ {[%clk 0:00:39.3]}
77... Ke4 {[%clk 0:00:19.1]} 78. Rf2 {[%clk 0:00:41.2]} 78... Kd4 {[%clk
0:00:19.6]} 79. Rd2+ {[%clk 0:00:42.1]} 79... Ke4 {[%clk 0:00:20.6]} 80. Rf2
{[%clk 0:00:44]} 80... Kd4 {[%clk 0:00:21.1]} 81. Rf4+ {[%clk 0:00:45.6]} 81...
Ke5 {[%clk 0:00:21.6]} 82. Rg4 {[%clk 0:00:46.7]} 82... Rd3 {[%clk 0:00:21.6]}
83. Bf4+ {[%clk 0:00:47.6]} 83... Kf5 {[%clk 0:00:22]} 84. Rh4 {[%clk
0:00:47.5]} 84... Rb3 {[%clk 0:00:21.7]} 85. Bd2 {[%clk 0:00:46.4]} 85... Rd3
{[%clk 0:00:21.5]} 86. Be1 {[%clk 0:00:46.4]} 86... Rb3 {[%clk 0:00:22]} 87. Kf1
{[%clk 0:00:47.8]} 87... Rb2 {[%clk 0:00:22.3]} 88. Ra4 {[%clk 0:00:49.3]} 88...
Rc2 {[%clk 0:00:22.9]} 89. Bf2 {[%clk 0:00:50.6]} 89... Rb2 {[%clk 0:00:23.1]}
90. Kg2 {[%clk 0:00:52.2]} 90... Rc2 {[%clk 0:00:24]} 91. Kf3 {[%clk 0:00:53.6]}
91... Rc3+ {[%clk 0:00:24.6]} 92. Be3 {[%clk 0:00:55]} 92... Rb3 {[%clk
0:00:26]} 93. Ra5+ {[%clk 0:00:56.2]} 93... Ke6 {[%clk 0:00:26.2]} 94. Ke4
{[%clk 0:00:57.6]} 94... Rb1 {[%clk 0:00:26.6]} 95. Ra6+ {[%clk 0:00:56.6]}
95... Kd7 {[%clk 0:00:27.1]} 96. Kd5 {[%clk 0:00:56.5]} 96... Rb5+ {[%clk
0:00:26.8]} 97. Bc5 {[%clk 0:00:57.2]} 97... Kc7 {[%clk 0:00:26.2]} 98. Ra7+
{[%clk 0:00:58.5]} 98... Kd8 {[%clk 0:00:26]} 99. Rh7 {[%clk 0:01:00.4]} 99...
Rb1 {[%clk 0:00:26.1]} 100. Kc6 {[%clk 0:00:58.2]} 100... Re1 {[%clk 0:00:23.2]}
101. Rh8+ {[%clk 0:00:52.4]} 101... Re8 {[%clk 0:00:21.8]} 102. Rh7 {[%clk
0:00:51.1]} 102... Re1 {[%clk 0:00:20.1]} 103. Ra7 {[%clk 0:00:46]} 103... Ke8
{[%clk 0:00:16.7]} 104. Kd5 {[%clk 0:00:42.3]} 104... Rd1+ {[%clk 0:00:14.8]}
105. Ke6 {[%clk 0:00:43.2]} 105... Re1+ {[%clk 0:00:14.8]} 106. Kd6 {[%clk
0:00:44]} 106... Rd1+ {[%clk 0:00:15.8]} 107. Kc6 {[%clk 0:00:45.3]} 107... Re1
{[%clk 0:00:16.1]} 108. Bd6 {[%clk 0:00:45.1]} 108... Rc1+ {[%clk 0:00:15.6]}
109. Kd5 {[%clk 0:00:46]} 109... Rd1+ {[%clk 0:00:16.3]} 110. Ke6 {[%clk
0:00:47.3]} 110... Re1+ {[%clk 0:00:07.6]} 111. Be5 {[%clk 0:00:47.4]} 111...
Rd1 {[%clk 0:00:08.8]} 112. Ra4 {[%clk 0:00:27.5]} 112... Rd2 {[%clk 0:00:05.6]}
113. Rg4 {[%clk 0:00:24.9]} 113... Kf8 {[%clk 0:00:03.2]} 114. Rh4 {[%clk
0:00:22.8]} 1-0

[Event "*** Titled Tuesday 3|2 Blitz"]
[Site "Chess.com"]
[Date "2016.02.02"]
[Round "7"]
[White "ItalianMachine"]
[Black "pedromartinez91"]
[Result "1-0"]
[WhiteElo "2236"]
[BlackElo "1983"]
[TimeControl "180+2"]
[EndTime "18:20:11 PST"]
[Termination "ItalianMachine won by resignation"]

1. e4 {[%clk 0:03:01.9]} 1... e6 {[%clk 0:03:00.3]} 2. d4 {[%clk 0:03:02.7]}
2... d5 {[%clk 0:03:00.2]} 3. Bd3 {[%clk 0:03:03.9]} 3... dxe4 {[%clk
0:02:59.2]} 4. Bxe4 {[%clk 0:03:05.1]} 4... Nf6 {[%clk 0:03:00.6]} 5. Bf3 {[%clk
0:03:06.5]} 5... Nbd7 {[%clk 0:03:02]} 6. Ne2 {[%clk 0:03:07.3]} 6... Be7 {[%clk
0:03:03.7]} 7. O-O {[%clk 0:03:08.6]} 7... O-O {[%clk 0:03:05.3]} 8. c4 {[%clk
0:03:09.9]} 8... c5 {[%clk 0:03:05.7]} 9. d5 {[%clk 0:03:10.7]} 9... exd5 {[%clk
0:03:06.8]} 10. cxd5 {[%clk 0:03:12.2]} 10... Bd6 {[%clk 0:03:07.8]} 11. Ng3
{[%clk 0:03:04.2]} 11... Ne5 {[%clk 0:03:04.6]} 12. Be4 {[%clk 0:03:04.4]} 12...
Nxe4 {[%clk 0:03:03.1]} 13. Nxe4 {[%clk 0:03:05.6]} 13... Bf5 {[%clk 0:03:04.4]}
14. Nbc3 {[%clk 0:03:03.4]} 14... a6 {[%clk 0:03:00.8]} 15. a4 {[%clk
0:03:03.4]} 15... Ng4 {[%clk 0:02:56.9]} 16. h3 {[%clk 0:03:03.1]} 16... Ne5
{[%clk 0:02:39.4]} 17. Re1 {[%clk 0:03:00.4]} 17... Ng6 {[%clk 0:02:38.8]} 18.
Bg5 {[%clk 0:02:51.8]} 18... Qc7 {[%clk 0:02:36.2]} 19. Qf3 {[%clk 0:02:51.5]}
19... Bxe4 {[%clk 0:02:27.2]} 20. Nxe4 {[%clk 0:02:49.1]} 20... Rfe8 {[%clk
0:02:28]} 21. g3 {[%clk 0:02:45.8]} 21... b5 {[%clk 0:02:28.8]} 22. h4 {[%clk
0:02:36.8]} 22... Ne5 {[%clk 0:02:21.3]} 23. Qf5 {[%clk 0:02:23.9]} 23... Nd3
{[%clk 0:02:03]} 24. Nf6+ {[%clk 0:02:18.6]} 24... gxf6 {[%clk 0:01:55.1]} 25.
Bxf6 {[%clk 0:02:19.4]} 25... Nf4 {[%clk 0:01:34.2]} 26. gxf4 {[%clk 0:02:15.6]}
26... Bxf4 {[%clk 0:01:35]} 27. Qg4+ {[%clk 0:02:15.6]} 1-0

[Event "*** Titled Tuesday 3|2 Blitz"]
[Site "Chess.com"]
[Date "2016.02.02"]
[Round "7"]
[White "GianmarcoVaR"]
[Black "Quiet_Desperation"]
[Result "1-0"]
[WhiteElo "2268"]
[BlackElo "2112"]
[TimeControl "180+2"]
[EndTime "18:21:51 PST"]
[Termination "GianmarcoVaR won by resignation"]

1. d4 {[%clk 0:02:46.3]} 1... Nf6 {[%clk 0:02:59.7]} 2. e3 {[%clk 0:02:48.2]}
2... e6 {[%clk 0:03:01.2]} 3. Nf3 {[%clk 0:02:20.6]} 3... b6 {[%clk 0:02:59.4]}
4. Bd3 {[%clk 0:02:14.8]} 4... Bb7 {[%clk 0:03:00.5]} 5. O-O {[%clk 0:02:15.6]}
5... Be7 {[%clk 0:03:01.7]} 6. c4 {[%clk 0:02:16.6]} 6... O-O {[%clk 0:03:02.2]}
7. Nc3 {[%clk 0:02:18.2]} 7... c5 {[%clk 0:02:57.6]} 8. d5 {[%clk 0:02:15.7]}
8... exd5 {[%clk 0:02:57.7]} 9. cxd5 {[%clk 0:02:00.1]} 9... d6 {[%clk
0:02:52.1]} 10. e4 {[%clk 0:01:45.2]} 10... Nfd7 {[%clk 0:02:42]} 11. Bf4 {[%clk
0:01:41.5]} 11... f6 {[%clk 0:02:38.5]} 12. Nd2 {[%clk 0:01:34.7]} 12... Ne5
{[%clk 0:02:39.6]} 13. Be2 {[%clk 0:01:30.6]} 13... a6 {[%clk 0:02:38.1]} 14. a4
{[%clk 0:01:31.2]} 14... Nbd7 {[%clk 0:02:36.6]} 15. Bg3 {[%clk 0:01:31.6]}
15... Ng6 {[%clk 0:02:29.9]} 16. Bg4 {[%clk 0:01:30.4]} 16... Nde5 {[%clk
0:02:29.6]} 17. Be6+ {[%clk 0:01:30.2]} 17... Kh8 {[%clk 0:02:30.9]} 18. f4
{[%clk 0:01:31]} 18... Nf7 {[%clk 0:02:23.2]} 19. Qh5 {[%clk 0:01:30.4]} 19...
Nh6 {[%clk 0:02:05.2]} 20. Nc4 {[%clk 0:01:11.6]} 20... Bc8 {[%clk 0:02:02.9]}
21. Bf5 {[%clk 0:01:10.9]} 21... Bd7 {[%clk 0:01:44.1]} 22. Bxd7 {[%clk
0:01:07.8]} 22... Qxd7 {[%clk 0:01:43.4]} 23. Nxb6 {[%clk 0:01:08.7]} 23... Qb7
{[%clk 0:01:44.1]} 24. Nxa8 {[%clk 0:01:09.5]} 24... Rxa8 {[%clk 0:01:45.4]} 25.
Rf2 {[%clk 0:01:03.8]} 25... Qb4 {[%clk 0:01:40.3]} 26. h3 {[%clk 0:00:55.2]}
26... Rb8 {[%clk 0:01:38.1]} 27. Kh2 {[%clk 0:00:54.1]} 27... Qd4 {[%clk
0:01:37.4]} 28. Rd1 {[%clk 0:00:53.7]} 28... Qc4 {[%clk 0:01:32.5]} 29. e5
{[%clk 0:00:53.3]} 29... f5 {[%clk 0:01:27.3]} 30. Qe2 {[%clk 0:00:48.3]} 30...
dxe5 {[%clk 0:01:24.9]} 31. Qxc4 {[%clk 0:00:48.3]} 1-0

[Event "*** Titled Tuesday 3|2 Blitz"]
[Site "Chess.com"]
[Date "2016.02.02"]
[Round "7"]
[White "Kanthecarowin"]
[Black "ethylalcohol"]
[Result "1-0"]
[WhiteElo "2161"]
[BlackElo "1723"]
[TimeControl "180+2"]
[EndTime "18:22:13 PST"]
[Termination "Kanthecarowin won on time"]

1. d4 {[%clk 0:03:01.9]} 1... f5 {[%clk 0:03:00]} 2. g3 {[%clk 0:03:02.6]} 2...
Nf6 {[%clk 0:03:00.7]} 3. Bg2 {[%clk 0:03:04.5]} 3... e6 {[%clk 0:03:00.3]} 4.
Nh3 {[%clk 0:03:00]} 4... Be7 {[%clk 0:02:59.4]} 5. O-O {[%clk 0:03:01.9]} 5...
O-O {[%clk 0:02:58.1]} 6. c4 {[%clk 0:02:51]} 6... d6 {[%clk 0:02:56.4]} 7. Nc3
{[%clk 0:02:49]} 7... Nc6 {[%clk 0:02:54.2]} 8. Be3 {[%clk 0:02:48.7]} 8... Qe8
{[%clk 0:02:49.2]} 9. Nf4 {[%clk 0:02:39.9]} 9... g5 {[%clk 0:02:36.1]} 10. Nh3
{[%clk 0:02:36.8]} 10... h6 {[%clk 0:02:36.7]} 11. d5 {[%clk 0:02:36.6]} 11...
Ne5 {[%clk 0:02:27]} 12. b3 {[%clk 0:02:33.8]} 12... Nfg4 {[%clk 0:02:04.5]} 13.
Bd4 {[%clk 0:02:29.6]} 13... c5 {[%clk 0:01:49.5]} 14. dxc6 {[%clk 0:02:29.5]}
14... Nxc6 {[%clk 0:01:49.7]} 15. Nb5 {[%clk 0:02:30.4]} 15... Nxd4 {[%clk
0:01:48]} 16. Qxd4 {[%clk 0:02:31.8]} 16... Bf6 {[%clk 0:01:47.8]} 17. Qxd6
{[%clk 0:02:32.5]} 17... Bxa1 {[%clk 0:01:42.6]} 18. Nc7 {[%clk 0:02:24.9]}
18... Qh5 {[%clk 0:00:45.3]} 19. Rxa1 {[%clk 0:02:18.3]} 19... f4 {[%clk
0:00:25]} 20. Nxa8 {[%clk 0:02:15.3]} 20... fxg3 {[%clk 0:00:18.2]} 21. hxg3
{[%clk 0:02:15.1]} 21... Nxf2 {[%clk 0:00:13.4]} 22. Nxf2 {[%clk 0:02:15.3]}
22... Qxe2 {[%clk 0:00:12.7]} 23. Qd4 {[%clk 0:02:15.7]} 23... e5 {[%clk
0:00:09.9]} 24. Qc5 {[%clk 0:02:06.7]} 24... b6 {[%clk 0:00:08.2]} 25. Qd5+
{[%clk 0:02:03.5]} 25... Kh8 {[%clk 0:00:05.3]} 26. Rf1 {[%clk 0:01:58.2]} 26...
Bf5 {[%clk 0:00:02]} 27. Nc7 {[%clk 0:01:53.2]} 1-0

[Event "*** Titled Tuesday 3|2 Blitz"]
[Site "Chess.com"]
[Date "2016.02.02"]
[Round "7"]
[White "Zkid"]
[Black "Mornar1951"]
[Result "1-0"]
[WhiteElo "2503"]
[BlackElo "2584"]
[TimeControl "180+2"]
[EndTime "18:22:23 PST"]
[Termination "Zkid won by checkmate"]

1. e4 {[%clk 0:03:00.7]} 1... c5 {[%clk 0:03:00.8]} 2. Nf3 {[%clk 0:03:01.5]}
2... e6 {[%clk 0:03:02.4]} 3. d4 {[%clk 0:03:02.7]} 3... cxd4 {[%clk 0:03:04.3]}
4. Nxd4 {[%clk 0:03:04]} 4... a6 {[%clk 0:03:06]} 5. Nc3 {[%clk 0:03:05.2]} 5...
Qc7 {[%clk 0:03:06]} 6. Bd3 {[%clk 0:03:05.1]} 6... Nf6 {[%clk 0:03:05.2]} 7.
Qe2 {[%clk 0:03:03]} 7... d6 {[%clk 0:03:06]} 8. f4 {[%clk 0:03:01.5]} 8... Nbd7
{[%clk 0:03:06.8]} 9. Bd2 {[%clk 0:02:56.6]} 9... Be7 {[%clk 0:03:07.5]} 10. g4
{[%clk 0:02:54.2]} 10... O-O {[%clk 0:03:03.1]} 11. g5 {[%clk 0:02:55.1]} 11...
Ne8 {[%clk 0:03:04.3]} 12. h4 {[%clk 0:02:51.8]} 12... Nc5 {[%clk 0:03:04.9]}
13. h5 {[%clk 0:02:47.5]} 13... b5 {[%clk 0:03:06.1]} 14. g6 {[%clk 0:02:48.1]}
14... b4 {[%clk 0:03:02.3]} 15. Nd1 {[%clk 0:02:44.7]} 15... Nxd3+ {[%clk
0:02:51.3]} 16. cxd3 {[%clk 0:02:45.3]} 16... e5 {[%clk 0:02:50.8]} 17. Nf3
{[%clk 0:02:42.8]} 17... Bg4 {[%clk 0:02:43.1]} 18. Ne3 {[%clk 0:02:37.8]} 18...
Bxf3 {[%clk 0:02:37.4]} 19. Qxf3 {[%clk 0:02:39.7]} 19... fxg6 {[%clk
0:02:36.1]} 20. Nd5 {[%clk 0:02:32.2]} 20... Qd8 {[%clk 0:02:21.8]} 21. hxg6
{[%clk 0:02:32.1]} 21... h6 {[%clk 0:02:21.5]} 22. Qh3 {[%clk 0:02:22.3]} 22...
Nc7 {[%clk 0:02:21.2]} 23. Nxc7 {[%clk 0:02:00.4]} 23... Qxc7 {[%clk 0:02:21.7]}
24. Qe6+ {[%clk 0:02:00.5]} 24... Kh8 {[%clk 0:02:21.5]} 25. f5 {[%clk
0:01:50.6]} 25... Rae8 {[%clk 0:01:57.4]} 26. Qb3 {[%clk 0:01:21]} 26... Qd8
{[%clk 0:01:53.7]} 27. Rh5 {[%clk 0:01:04.2]} 27... d5 {[%clk 0:01:37.2]} 28.
Ke2 {[%clk 0:01:00]} 28... Rf6 {[%clk 0:01:35.2]} 29. Rah1 {[%clk 0:00:53.9]}
29... Bf8 {[%clk 0:01:36]} 30. Bg5 {[%clk 0:00:39.2]} 30... dxe4 {[%clk
0:01:35.3]} 31. dxe4 {[%clk 0:00:32.7]} 31... Qa8 {[%clk 0:01:29.6]} 32. Rxh6+
{[%clk 0:00:29.4]} 32... gxh6 {[%clk 0:01:23.9]} 33. Bxf6+ {[%clk 0:00:30.1]}
33... Bg7 {[%clk 0:01:24.2]} 34. Rxh6# {[%clk 0:00:31]} 1-0

[Event "*** Titled Tuesday 3|2 Blitz"]
[Site "Chess.com"]
[Date "2016.02.02"]
[Round "7"]
[White "Dlugy"]
[Black "yurisolo"]
[Result "1/2-1/2"]
[WhiteElo "2571"]
[BlackElo "2495"]
[TimeControl "180+2"]
[EndTime "18:24:18 PST"]
[Termination "Game drawn by repetition"]

1. d4 {[%clk 0:03:01.9]} 1... d5 {[%clk 0:03:01.3]} 2. Bf4 {[%clk 0:03:03.2]}
2... c5 {[%clk 0:03:01.7]} 3. e3 {[%clk 0:02:58.5]} 3... Nc6 {[%clk 0:02:58.1]}
4. c3 {[%clk 0:02:58.2]} 4... Nf6 {[%clk 0:02:54.8]} 5. Nd2 {[%clk 0:02:58.4]}
5... Bf5 {[%clk 0:02:53.2]} 6. Qb3 {[%clk 0:02:49.9]} 6... Qb6 {[%clk
0:02:51.3]} 7. dxc5 {[%clk 0:02:50.5]} 7... Qxb3 {[%clk 0:02:47.7]} 8. axb3
{[%clk 0:02:36.3]} 8... e5 {[%clk 0:02:48.4]} 9. Bg5 {[%clk 0:02:37.9]} 9...
Bxc5 {[%clk 0:02:48.2]} 10. Bxf6 {[%clk 0:02:39.5]} 10... gxf6 {[%clk
0:02:48.7]} 11. Ngf3 {[%clk 0:02:38.1]} 11... Ke7 {[%clk 0:02:46.7]} 12. Nh4
{[%clk 0:02:30.3]} 12... Bg6 {[%clk 0:02:46.8]} 13. g3 {[%clk 0:02:29.9]} 13...
d4 {[%clk 0:02:27.6]} 14. exd4 {[%clk 0:02:29.1]} 14... exd4 {[%clk 0:02:28.4]}
15. Bg2 {[%clk 0:02:19.6]} 15... dxc3 {[%clk 0:02:23.2]} 16. bxc3 {[%clk
0:02:20.3]} 16... Rhd8 {[%clk 0:02:19.5]} 17. Ne4 {[%clk 0:02:18.3]} 17... Bb6
{[%clk 0:02:14.4]} 18. O-O {[%clk 0:02:19.1]} 18... f5 {[%clk 0:02:10.1]} 19.
Ng5 {[%clk 0:02:19.3]} 19... Rd3 {[%clk 0:01:58.5]} 20. Rac1 {[%clk 0:02:07.5]}
20... Kf6 {[%clk 0:01:55.8]} 21. Nh3 {[%clk 0:02:06.8]} 21... Rad8 {[%clk
0:01:33.1]} 22. Nf4 {[%clk 0:01:59.9]} 22... Rd2 {[%clk 0:01:34.1]} 23. Nf3
{[%clk 0:01:56.6]} 23... Rb2 {[%clk 0:01:34.3]} 24. h4 {[%clk 0:01:57.8]} 24...
h6 {[%clk 0:01:26.8]} 25. b4 {[%clk 0:01:44.7]} 25... a5 {[%clk 0:01:00.4]} 26.
bxa5 {[%clk 0:01:44.1]} 26... Nxa5 {[%clk 0:01:01.4]} 27. c4 {[%clk 0:01:43]}
27... Nb3 {[%clk 0:00:54.8]} 28. Rce1 {[%clk 0:01:07.6]} 28... Bc5 {[%clk
0:00:39.9]} 29. Re2 {[%clk 0:00:59]} 29... Rxe2 {[%clk 0:00:29.5]} 30. Nxe2
{[%clk 0:01:00.5]} 30... Nd2 {[%clk 0:00:28.7]} 31. Nxd2 {[%clk 0:00:59.4]}
31... Rxd2 {[%clk 0:00:30.1]} 32. Nf4 {[%clk 0:01:00.9]} 32... b6 {[%clk
0:00:29.6]} 33. Bf3 {[%clk 0:01:00.7]} 33... Rc2 {[%clk 0:00:21.7]} 34. Bd5
{[%clk 0:00:41.1]} 34... Bd6 {[%clk 0:00:22.5]} 35. Rb1 {[%clk 0:00:38.3]} 35...
Bc5 {[%clk 0:00:17.8]} 36. Nd3 {[%clk 0:00:37.9]} 36... Bd4 {[%clk 0:00:16.4]}
37. Rf1 {[%clk 0:00:34.1]} 37... Bh7 {[%clk 0:00:08.1]} 38. Nf4 {[%clk
0:00:35.2]} 38... Bg6 {[%clk 0:00:08.6]} 39. Kg2 {[%clk 0:00:35.8]} 39... Be5
{[%clk 0:00:09.4]} 40. Rb1 {[%clk 0:00:32.7]} 40... Bd4 {[%clk 0:00:10.2]} 41.
Rf1 {[%clk 0:00:33.7]} 41... Be5 {[%clk 0:00:11.5]} 42. Nd3 {[%clk 0:00:31.4]}
42... Bd4 {[%clk 0:00:12.2]} 43. Nf4 {[%clk 0:00:32.2]} 43... Be5 {[%clk
0:00:13]} 1/2-1/2